bitfinex/quotes_SOLUSD_20250619
["timestamp","ask_amount","ask_price","bid_price","bid_amount"]
[1750293238591,12.57376073,147.84,147.8,6.76589986]
[1750293238772,6.39576073,147.81,147.8,6.76589986]
[1750293239087,6.39576073,147.81,147.79,16.91507078]
[1750293239518,6.39576073,147.82,147.79,16.91507078]
[1750293240916,6.39576073,147.83,147.79,23.31083151]
[1750293241102,12.57376073,147.84,147.8,6.39576073]
[1750293241301,6.67060553,147.87,147.8,6.39576073]
[1750293241490,6.39576073,147.84,147.8,6.39576073]
[1750293241686,6.39576073,147.84,147.79,23.31083151]
[1750293242315,6.39576073,147.83,147.79,23.31083151]
[1750293242496,6.39576073,147.81,147.79,16.91507078]
[1750293242905,6.39576073,147.82,147.79,16.91507078]
[1750293243217,6.39576073,147.84,147.79,23.31083151]
[1750293243417,147.0,147.86,147.81,6.39576073]
[1750293243631,147.0,147.86,147.8,18.64964886]
[1750293243793,147.0,147.86,147.83,6.39576073]
[1750293245000,147.0,147.86,147.84,6.76406926]
[1750293245607,153.39576073,147.86,147.84,6.76406926]
[1750293246322,147.0,147.86,147.84,6.76406926]
[1750293246498,147.0,147.86,147.84,13.15982999]
[1750293248604,147.0,147.86,147.84,6.76406926]
[1750293248807,153.39576073,147.86,147.84,6.76406926]
[1750293249005,153.39576073,147.86,147.83,23.67561117]
[1750293249206,147.0,147.86,147.83,23.67561117]
[1750293249924,153.39576073,147.86,147.83,23.67561117]
[1750293250231,6.39576073,147.84,147.81,6.76499404]
[1750293250404,6.39576073,147.82,147.81,6.76499404]
[1750293250597,6.39576073,147.84,147.81,6.76499404]
[1750293250798,153.4457,147.86,147.81,30.07436007]
[1750293251023,6.39576073,147.85,147.81,30.07436007]
[1750293251904,6.39576073,147.83,147.81,23.67859934]
[1750293252231,6.39576073,147.84,147.81,23.67859934]
[1750293253608,6.39576073,147.84,147.79,23.68225183]
[1750293253904,6.39576073,147.84,147.79,30.07801256]
[1750293254851,153.4457,147.86,147.81,6.39576073]
[1750293255147,6.39576073,147.85,147.8,6.39576073]
[1750293255346,6.39576073,147.84,147.79,23.68225183]
[1750293255645,6.39576073,147.84,147.81,23.67904742]
[1750293256150,153.4457,147.86,147.81,23.67904742]
[1750293256151,6.39576073,147.85,147.81,30.07480815]
[1750293257033,6.39576073,147.84,147.8,6.39576073]
[1750293258728,6.39576073,147.84,147.79,30.07801256]
[1750293259465,147.0,147.86,147.83,6.39576073]
[1750293259638,147.0,147.86,147.84,6.39576073]
[1750293260340,147.0,147.86,147.83,6.39576073]
[1750293260657,147.0,147.86,147.82,6.39576073]
[1750293260859,147.0,147.86,147.81,29.24]
[1750293261061,147.0,147.86,147.82,23.67744554]
[1750293261364,147.0,147.86,147.82,30.07320627]
[1750293262263,153.39576073,147.86,147.82,30.07320627]
[1750293263370,6.39576073,147.85,147.82,23.67744554]
[1750293263570,6.39576073,147.84,147.82,23.67744554]
[1750293264066,147.0,147.86,147.82,30.07320627]
[1750293265363,147.0,147.86,147.82,23.67744554]
[1750293265666,147.0,147.86,147.83,6.39576073]
[1750293267367,153.39576073,147.86,147.82,6.39576073]
[1750293268059,147.0,147.86,147.8,18.64964886]
[1750293268369,5.51778736,147.88,147.85,6.39576073]
[1750293268545,5.51778736,147.88,147.87,6.39576073]
[1750293268946,5.51778736,147.88,147.87,13.15845769]
[1750293270976,5.51778736,147.88,147.87,6.39576073]
[1750293272477,5.51778736,147.88,147.86,6.76315433]
[1750293272786,5.51778736,147.88,147.87,6.39576073]
[1750293272984,5.51778736,147.88,147.87,13.15845769]
[1750293273987,1.4213462,147.97,147.9,26.0]
[1750293274200,6.39576073,147.96,147.91,29.34]
[1750293274383,1.4213462,147.97,147.91,29.34]
[1750293274384,6.39576073,147.95,147.91,35.73576073]
[1750293274596,1.4213462,147.97,147.93,6.39576073]
[1750293274899,1.4213462,147.97,147.91,36.3]
[1750293274900,1.4213462,147.97,147.92,23.66143861]
[1750293275067,1.4213462,147.97,147.94,6.39576073]
[1750293277099,1.4213462,147.97,147.95,6.75904021]
[1750293277262,6.39576073,147.96,147.95,6.75904021]
[1750293278773,1.4213462,147.97,147.95,6.75904021]
[1750293278967,6.39576073,147.96,147.95,6.75904021]
[1750293279290,6.39576073,147.96,147.94,16.89853884]
[1750293280403,147.0,147.96,147.94,16.89853884]
[1750293280701,1.4213462,147.97,147.95,6.39576073]
[1750293280907,1.4213462,147.97,147.96,6.39576073]
[1750293281294,1.4213462,147.97,147.96,6.7585834]
[1750293283405,1.4213462,147.97,147.95,6.75904021]
[1750293283791,1.4213462,147.97,147.95,13.15480094]
[1750293285188,1.4213462,147.97,147.94,23.65803593]
[1750293285393,1.4213462,147.97,147.94,30.05379666]
[1750293286322,6.39576073,147.96,147.94,23.65803593]
[1750293287105,7.81710693,147.97,147.94,23.65803593]
[1750293287506,7.81710693,147.97,147.92,23.66143861]
[1750293287727,154.81710693,147.97,147.92,30.05719934]
[1750293287926,6.39576073,147.96,147.92,30.05719934]
[1750293288728,148.4213462,147.97,147.92,30.05719934]
[1750293289031,6.39576073,147.96,147.92,30.05719934]
[1750293289235,6.39576073,147.96,147.92,23.66143861]
[1750293289405,6.39576073,147.96,147.92,30.05719934]
[1750293289603,6.39576073,147.96,147.92,23.66143861]
[1750293289827,6.39576073,147.96,147.92,30.05719934]
[1750293291116,6.39576073,147.96,147.92,23.66143861]
[1750293291317,6.39576073,147.96,147.92,30.05719934]
[1750293291525,6.39576073,147.96,147.92,23.66143861]
[1750293291721,6.39576073,147.96,147.92,30.05719934]
[1750293291940,154.81710693,147.97,147.92,23.66143861]
[1750293292145,6.39576073,147.95,147.92,23.66143861]
[1750293292655,6.39576073,147.94,147.92,23.66143861]
[1750293293452,1.6173,147.92,147.84,6.76406926]
[1750293293657,6.39576073,147.87,147.84,6.76406926]
[1750293293846,6.39576073,147.91,147.84,6.76406926]
[1750293294173,173.0,147.96,147.88,6.39576073]
[1750293294461,174.6571,147.96,147.88,6.39576073]
[1750293294641,6.39576073,147.93,147.88,6.39576073]
[1750293294844,6.39576073,147.91,147.87,35.59576073]
[1750293295042,6.39576073,147.88,147.84,16.91017316]
[1750293295258,6.39576073,147.87,147.84,16.91017316]
[1750293295559,6.39576073,147.86,147.84,16.91017316]
[1750293296127,6.39576073,147.86,147.83,13.72452682]
[1750293297054,1.5277,147.89,147.83,30.63584387]
[1750293297349,1.5277,147.89,147.83,6.76452682]
[1750293297554,6.39576073,147.84,147.83,6.76452682]
[1750293297740,8.28959074,147.89,147.83,6.76452682]
[1750293297941,6.39576073,147.85,147.83,6.76452682]
[1750293298256,1.5277,147.89,147.83,6.76452682]
[1750293298548,6.39576073,147.84,147.83,6.76452682]
[1750293298757,1.5277,147.89,147.83,6.76452682]
[1750293298925,6.39576073,147.84,147.83,6.76452682]
[1750293299127,6.39576073,147.84,147.81,23.67904742]
[1750293301675,6.39576073,147.82,147.81,6.76544212]
[1750293302078,6.39576073,147.82,147.78,16.91596705]
[1750293302079,7.97536073,147.82,147.75,16.91957478]
[1750293302248,26.0,147.8,147.71,6.77002234]
[1750293302653,6.39576073,147.75,147.71,6.77002234]
[1750293303053,26.0,147.8,147.72,16.92338938]
[1750293303385,1.5796,147.82,147.72,16.92338938]
[1750293303593,6.39576073,147.77,147.72,23.31915011]
[1750293304280,6.39576073,147.75,147.72,16.92338938]
[1750293304468,6.39576073,147.73,147.72,16.92338938]
[1750293304860,148.5044,147.86,147.73,6.5568]
[1750293305058,148.5044,147.86,147.81,6.76544212]
[1750293305575,6.39576073,147.85,147.81,23.67904742]
[1750293305779,6.39576073,147.84,147.81,23.67904742]
[1750293306489,6.39576073,147.85,147.81,23.67904742]
[1750293306979,10.94606504,147.88,147.84,6.39576073]
[1750293307176,10.94606504,147.88,147.85,30.06840191]
[1750293307381,6.39576073,147.9,147.86,6.39576073]
[1750293307591,6.39576073,147.92,147.87,6.39576073]
[1750293307780,6.39576073,147.89,147.85,30.06840191]
[1750293308077,6.39576073,147.91,147.87,6.39576073]
[1750293308493,6.39576073,147.89,147.85,57.49070002]
[1750293308797,6.39576073,147.87,147.85,23.67264118]
[1750293309089,1.5486,147.94,147.85,16.90902942]
[1750293309090,10.87859061,147.86,147.85,16.90902942]
[1750293309461,15.82851606,147.94,147.85,16.90902942]
[1750293309462,10.87859061,147.87,147.85,16.90902942]
[1750293309871,10.87859061,147.86,147.85,16.90902942]
[1750293310383,10.87859061,147.87,147.85,16.90902942]
[1750293310958,26.0,147.91,147.85,16.90902942]
[1750293311189,10.87859061,147.87,147.85,16.90902942]
[1750293311686,26.0,147.91,147.85,16.90902942]
[1750293311983,10.87859061,147.89,147.85,16.90902942]
[1750293312184,10.87859061,147.89,147.83,33.8226341]
[1750293312385,10.87859061,147.88,147.83,44.70122471]
[1750293312866,10.87859061,147.87,147.83,33.8226341]
[1750293313060,10.87859061,147.87,147.83,44.70122471]
[1750293313260,10.87859061,147.87,147.83,33.8226341]
[1750293313554,10.87859061,147.87,147.83,44.70122471]
[1750293313956,10.87859061,147.88,147.83,44.70122471]
[1750293314158,10.87859061,147.88,147.83,68.37706858]
[1750293314506,9.0699551,147.94,147.83,68.37706858]
[1750293314507,7.5213551,147.94,147.86,26.0]
[1750293314701,7.5213551,147.94,147.88,18.64964886]
[1750293314702,10.87859061,147.94,147.88,18.64964886]
[1750293314879,10.87859061,147.96,147.87,29.52823947]
[1750293315246,10.87859061,147.96,147.86,55.6]
[1750293315247,10.87859061,147.91,147.86,29.6]
[1750293315514,10.87859061,147.9,147.86,40.47859061]
[1750293315719,10.87859061,147.9,147.85,6.98]
[1750293315720,10.87859061,147.89,147.85,6.98]
[1750293315895,8.1406,147.93,147.85,6.98]
[1750293316086,10.87859061,147.87,147.85,6.98]
[1750293316292,10.87859061,147.87,147.86,6.76315433]
[1750293317496,10.87859061,147.89,147.86,23.67104016]
[1750293317692,10.87859061,147.87,147.86,23.67104016]
[1750293317997,10.87859061,147.87,147.86,6.76315433]
[1750293318301,10.87859061,147.87,147.79,25.62964886]
[1750293318302,10.87859061,147.87,147.8,34.55924013]
[1750293318502,10.87859061,147.84,147.8,23.68064952]
[1750293319287,32.7613553,147.9,147.8,23.68064952]
[1750293319490,10.87859061,147.83,147.8,23.68064952]
[1750293320298,6.76182867,147.89,147.8,23.68064952]
[1750293320299,10.87859061,147.82,147.8,23.68064952]
[1750293320489,10.87859061,147.81,147.8,23.68064952]
[1750293320691,10.87859061,147.82,147.8,23.68064952]
[1750293321406,10.87859061,147.81,147.8,6.76589986]
[1750293321821,10.87859061,147.81,147.77,16.91730027]
[1750293322043,10.87859061,147.79,147.77,16.91730027]
[1750293322534,10.87859061,147.8,147.77,16.91730027]
[1750293323135,10.87859061,147.79,147.77,16.91730027]
[1750293323926,10.87859061,147.79,147.74,34.56885729]
[1750293324110,10.87859061,147.78,147.74,23.69026668]
[1750293324306,10.87859061,147.76,147.74,23.69026668]
[1750293324741,26.0,147.81,147.74,23.69026668]
[1750293325034,10.87859061,147.78,147.74,34.56885729]
[1750293325239,10.87859061,147.78,147.74,23.69026668]
[1750293325419,26.0,147.81,147.74,23.69026668]
[1750293325615,10.87859061,147.78,147.74,23.69026668]
[1750293326442,10.87859061,147.78,147.74,34.56885729]
[1750293326935,10.87859061,147.79,147.75,10.87859061]
[1750293327431,26.0,147.81,147.76,10.87859061]
[1750293327635,10.87859061,147.8,147.76,10.87859061]
[1750293328022,10.87859061,147.8,147.74,57.5335048]
[1750293328407,10.87859061,147.8,147.75,10.87859061]
[1750293328611,10.87859061,147.79,147.75,10.87859061]
[1750293328835,10.87859061,147.78,147.74,68.41209541]
[1750293329043,10.87859061,147.78,147.74,23.69026668]
[1750293329250,10.87859061,147.77,147.74,23.69026668]
[1750293329412,10.87859061,147.78,147.74,34.56885729]
[1750293329642,10.87859061,147.78,147.74,23.69026668]
[1750293329972,10.87859061,147.79,147.74,34.56885729]
[1750293330346,10.87859061,147.78,147.74,34.56885729]
[1750293330746,10.87859061,147.79,147.74,34.56885729]
[1750293331664,10.87859061,147.76,147.74,6.76864762]
[1750293331873,10.87859061,147.75,147.74,6.76864762]
[1750293332653,10.87859061,147.75,147.71,16.92426016]
[1750293332855,10.87859061,147.74,147.71,16.92426016]
[1750293333305,10.87859061,147.72,147.7,6.7704807]
[1750293333868,10.87859061,147.74,147.7,23.69668246]
[1750293334053,10.87859061,147.73,147.7,23.69668246]
[1750293334252,8.1756,147.76,147.7,23.69668246]
[1750293334253,10.87859061,147.72,147.7,23.69668246]
[1750293334462,10.87859061,147.73,147.7,23.69668246]
[1750293334753,10.87859061,147.73,147.7,16.92620176]
[1750293334950,10.87859061,147.75,147.7,27.80479237]
[1750293335267,147.0,147.79,147.74,10.87859061]
[1750293335441,147.0,147.79,147.7,92.61415062]
[1750293335442,12.45069061,147.8,147.75,10.87859061]
[1750293335863,27.5721,147.8,147.71,6.5982]
[1750293336064,27.5721,147.8,147.7,16.92620176]
[1750293336065,10.87859061,147.75,147.7,16.92620176]
[1750293336269,10.87859061,147.74,147.7,16.92620176]
[1750293337092,10.87859061,147.74,147.7,34.57527307]
[1750293338141,5.0216425,147.78,147.7,34.57527307]
[1750293338142,10.87859061,147.73,147.7,23.69668246]
[1750293338341,10.87859061,147.72,147.7,6.7704807]
[1750293338541,6.5802,147.76,147.7,6.7704807]
[1750293338542,6.5802,147.76,147.71,10.87859061]
[1750293338742,31.02425424,147.78,147.71,10.87859061]
[1750293338954,10.87859061,147.76,147.72,23.69347414]
[1750293339152,10.87859061,147.77,147.73,10.87859061]
[1750293339339,10.87859061,147.77,147.72,23.69347414]
[1750293339553,10.87859061,147.77,147.73,10.87859061]
[1750293339772,10.87859061,147.77,147.72,23.69347414]
[1750293339969,10.87859061,147.76,147.72,34.57206475]
[1750293340174,31.02425424,147.78,147.73,10.87859061]
[1750293340467,147.0,147.77,147.74,10.87859061]
[1750293340661,147.0,147.76,147.74,10.87859061]
[1750293340862,8.1523,147.8,147.75,10.87859061]
[1750293341171,1.5721,147.8,147.76,34.5656507]
[1750293341568,10.87859061,147.81,147.77,10.87859061]
[1750293341772,5.02424036,147.82,147.77,10.87859061]
[1750293341952,18.41728476,147.82,147.77,10.87859061]
[1750293342372,15.90283097,147.82,147.78,10.87859061]
[1750293342849,15.90283097,147.82,147.76,23.68706009]
[1750293343047,15.90283097,147.82,147.78,10.87859061]
[1750293343245,15.90283097,147.82,147.79,6.76635766]
[1750293343449,10.87859061,147.81,147.79,6.76635766]
[1750293345185,10.87859061,147.81,147.78,6.76681553]
[1750293346176,5.02565532,147.82,147.77,10.87859061]
[1750293346474,10.87859061,147.81,147.77,10.87859061]
[1750293346883,173.0,147.83,147.73,18.64964886]
[1750293347049,173.0,147.83,147.79,10.87859061]
[1750293347472,147.0,147.83,147.79,10.87859061]
[1750293347648,17.93859061,147.85,147.8,10.87859061]
[1750293347865,7.06,147.85,147.81,10.87859061]
[1750293348054,10.87859061,147.86,147.81,10.87859061]
[1750293348257,10.87859061,147.86,147.82,6.76498444]
[1750293348958,10.87859061,147.86,147.82,34.55603615]
[1750293349372,7.54096883,147.87,147.82,34.55603615]
[1750293349587,10.87859061,147.86,147.82,34.55603615]
[1750293350162,148.6465,147.88,147.82,34.55603615]
[1750293350359,10.87859061,147.87,147.82,23.67744554]
[1750293350579,10.87859061,147.87,147.83,10.87859061]
[1750293351593,10.87859061,147.87,147.82,34.55603615]
[1750293353172,10.87859061,147.85,147.82,6.76498444]
[1750293355479,10.87859061,147.85,147.82,6.76498444]
[1750293356083,10.87859061,147.86,147.82,17.64357505]
[1750293356278,148.6465,147.88,147.83,10.87859061]
[1750293356591,10.87859061,147.89,147.85,10.87859061]
[1750293356787,10.87859061,147.9,147.85,10.87859061]
[1750293357092,9.57672634,147.91,147.87,10.87859061]
[1750293357401,7.06,147.91,147.88,10.87859061]
[1750293357768,0.13044454,147.89,147.88,10.87859061]
[1750293358277,0.13044454,147.89,147.87,10.87859061]
[1750293358466,0.13044454,147.89,147.88,6.76223965]
[1750293358672,0.13044454,147.89,147.88,17.64083026]
[1750293358978,0.14395711,147.9,147.88,43.35047912]
[1750293359292,0.14395711,147.9,147.89,55.52823947]
[1750293359633,0.12328311,147.91,147.9,18.64964886]
[1750293359960,0.12328311,147.91,147.9,29.52823947]
[1750293360164,0.12328311,147.91,147.89,3.39359194]
[1750293360364,0.12328311,147.91,147.9,17.63991582]
[1750293360672,11.00187372,147.91,147.87,17.64128757]
[1750293360865,10.87859061,147.89,147.86,6.76304501]
[1750293361068,10.87859061,147.88,147.86,6.76304501]
[1750293361267,10.87859061,147.89,147.86,6.76304501]
[1750293361571,37.00187372,147.91,147.86,6.76304501]
[1750293361906,10.87859061,147.9,147.86,6.76304501]
[1750293362684,0.12328311,147.91,147.86,17.64163562]
[1750293362993,0.12328311,147.91,147.86,23.67093084]
[1750293363171,0.12328311,147.91,147.89,10.87859061]
[1750293363374,0.12328311,147.91,147.86,23.67093084]
[1750293363577,0.12328311,147.91,147.89,10.87859061]
[1750293363772,0.12328311,147.91,147.86,23.67093084]
[1750293363972,0.12328311,147.91,147.9,10.87859061]
[1750293364602,0.12328311,147.91,147.9,17.63991582]
[1750293365792,0.12328311,147.91,147.86,23.67104016]
[1750293365973,0.12328311,147.91,147.88,10.87859061]
[1750293367009,0.12328311,147.91,147.86,23.67104016]
[1750293367010,0.12328311,147.91,147.89,10.87859061]
[1750293367997,0.12328311,147.91,147.9,6.76132521]
[1750293368192,0.12328311,147.91,147.9,17.63991582]
[1750293370294,0.12328311,147.91,147.86,18.64964886]
[1750293370497,0.12328311,147.91,147.9,10.87859061]
[1750293372178,0.12328311,147.91,147.9,17.63991582]
[1750293372684,0.12328311,147.91,147.9,6.76132521]
[1750293373197,0.12328311,147.91,147.9,17.63991582]
[1750293373373,0.12328311,147.91,147.9,6.76132521]
[1750293373702,0.12328311,147.91,147.9,17.63991582]
[1750293374683,0.12328311,147.91,147.9,6.76132521]
[1750293377216,10.87859061,147.95,147.9,34.54322886]
[1750293377387,1.4213462,147.97,147.94,10.87859061]
[1750293377581,1.4213462,147.97,147.95,10.87859061]
[1750293377779,0.12748231,147.96,147.95,10.87859061]
[1750293378392,0.12748231,147.96,147.95,17.63763082]
[1750293379700,0.12748231,147.96,147.95,10.87859061]
[1750293381911,0.12748231,147.96,147.94,10.87859061]
[1750293382206,0.12748231,147.96,147.93,10.87859061]
[1750293382418,0.12748231,147.96,147.94,10.87859061]
[1750293382912,0.12748231,147.96,147.95,6.75904021]
[1750293383917,0.12748231,147.96,147.93,10.87859061]
[1750293384895,0.12748231,147.96,147.92,10.87859061]
[1750293384896,11.00607292,147.96,147.92,10.87859061]
[1750293386000,11.00607292,147.96,147.93,6.75995403]
[1750293386400,0.12748231,147.96,147.93,17.63854464]
[1750293386614,0.12748231,147.96,147.95,10.87859061]
[1750293387008,147.12748231,147.96,147.94,10.87859061]
[1750293388321,147.12748231,147.96,147.95,17.63763082]
[1750293390611,0.12748231,147.96,147.95,17.63763082]
[1750293390807,0.12748231,147.96,147.92,6.76041103]
[1750293391017,0.12748231,147.96,147.93,10.87859061]
[1750293391498,0.12748231,147.96,147.94,10.87859061]
[1750293392397,0.12748231,147.96,147.95,17.63763082]
[1750293394230,0.12748231,147.96,147.95,6.75904021]
[1750293394534,0.12748231,147.96,147.95,17.63763082]
[1750293396005,0.12748231,147.96,147.95,6.75904021]
[1750293396197,0.12748231,147.96,147.9,6.76132521]
[1750293396401,11.00607292,147.96,147.92,17.63869069]
[1750293396595,16.03247757,147.96,147.92,17.63869069]
[1750293396814,10.87859061,147.95,147.88,6.76223965]
[1750293397018,10.87859061,147.93,147.88,17.64083026]
[1750293397327,10.87859061,147.92,147.88,17.64083026]
[1750293397627,15.91193846,147.93,147.89,10.87859061]
[1750293397929,0.12825482,147.9,147.89,10.87859061]
[1750293398111,0.12825482,147.9,147.89,17.64037301]
[1750293398513,0.12825482,147.9,147.86,24.04778745]
[1750293398514,0.12825482,147.9,147.87,6.76269696]
[1750293398719,0.12825482,147.9,147.87,17.64128757]
[1750293398924,10.87859061,147.89,147.84,6.76406926]
[1750293399115,10.87859061,147.88,147.84,6.76406926]
[1750293399432,10.87859061,147.87,147.84,6.76406926]
[1750293400211,5.03771023,147.88,147.86,10.87859061]
[1750293400405,6.61531023,147.89,147.84,23.67424242]
[1750293400604,1.5776,147.89,147.87,10.87859061]
[1750293401225,5.16596505,147.9,147.87,10.87859061]
[1750293401414,0.12825482,147.9,147.87,10.87859061]
[1750293401734,5.16596505,147.9,147.87,10.87859061]
[1750293402438,0.12825482,147.9,147.88,17.64083026]
[1750293402817,0.12825482,147.9,147.88,6.76223965]
[1750293404443,147.12825482,147.9,147.88,6.76223965]
[1750293405538,157.87859061,147.89,147.83,16.91036136]
[1750293405707,157.87859061,147.88,147.81,6.76544212]
[1750293405918,10.87859061,147.86,147.82,10.87859061]
[1750293406128,147.0,147.85,147.82,10.87859061]
[1750293406438,147.0,147.85,147.81,23.67904742]
[1750293406640,147.0,147.85,147.83,6.76452682]
[1750293408852,147.0,147.85,147.81,16.9136053]
[1750293409063,10.87859061,147.83,147.79,17.64494827]
[1750293409236,10.87859061,147.82,147.79,6.76635766]
[1750293409551,147.0,147.82,147.78,6.76664805]
[1750293409751,147.0,147.82,147.8,10.87859061]
[1750293410457,147.0,147.82,147.79,10.87859061]
[1750293411257,157.87859061,147.82,147.8,6.76589986]
[1750293411959,147.0,147.82,147.8,6.76589986]
[1750293412257,147.0,147.82,147.81,10.87859061]
[1750293412559,147.0,147.82,147.8,6.76589986]
[1750293412741,147.0,147.82,147.81,10.87859061]
[1750293413147,147.0,147.82,147.81,17.64403273]
[1750293413947,147.0,147.82,147.81,6.76544212]
[1750293414362,157.87859061,147.82,147.81,6.76544212]
[1750293414537,157.87859061,147.82,147.79,6.76635766]
[1750293415468,147.0,147.82,147.79,6.76635766]
[1750293415653,147.0,147.82,147.79,17.64494827]
[1750293415852,147.0,147.82,147.79,6.76635766]
[1750293416039,147.0,147.82,147.79,17.64494827]
[1750293416568,147.0,147.81,147.79,17.64494827]
[1750293417139,30.9476,147.85,147.79,17.64494827]
[1750293417140,147.0,147.8,147.79,6.76635766]
[1750293417562,147.0,147.8,147.78,6.76681553]
[1750293417767,147.0,147.8,147.78,17.64540614]
[1750293417768,147.1355189,147.8,147.78,17.64540614]
[1750293418782,10.87859061,147.79,147.75,6.7681895]
[1750293418936,10.87859061,147.77,147.75,6.7681895]
[1750293419143,157.87859061,147.78,147.75,6.7681895]
[1750293419370,147.0,147.78,147.77,10.87859061]
[1750293419711,147.0,147.78,147.77,17.64586407]
[1750293420267,147.0,147.78,147.76,17.64617998]
[1750293420567,147.0,147.78,147.76,6.76758937]
[1750293420743,147.0,147.78,147.75,10.87859061]
[1750293420744,147.0,147.78,147.75,17.6466835]
[1750293420952,157.87859061,147.78,147.75,6.76809289]
[1750293421163,147.0,147.78,147.75,6.76809289]
[1750293421341,147.0,147.78,147.75,17.6466835]
[1750293421852,147.0,147.78,147.75,6.76809289]
[1750293422445,147.0,147.78,147.77,10.87859061]
[1750293423662,147.0,147.78,147.77,17.64586407]
[1750293425079,147.0,147.78,147.77,6.76727346]
[1750293425467,147.0,147.78,147.76,10.87859061]
[1750293425468,147.0,147.78,147.76,6.7676244]
[1750293425862,147.0,147.78,147.76,17.64621501]
[1750293426080,147.0,147.78,147.77,10.87859061]
[1750293426287,147.0,147.78,147.76,17.64621501]
[1750293426868,147.0,147.78,147.77,10.87859061]
[1750293427572,0.1355189,147.8,147.77,21.75718122]
[1750293427893,0.1355189,147.8,147.79,10.87859061]
[1750293429187,0.1355189,147.8,147.79,29.52823947]
[1750293429377,0.1377653,147.81,147.8,10.87859061]
[1750293429904,0.1377653,147.81,147.8,17.64449047]
[1750293433583,32.76899816,147.74,147.64,10.87859061]
[1750293433896,105.4354998,147.73,147.63,10.87859061]
[1750293434096,62.36,147.73,147.65,10.87859061]
[1750293434273,10.87859061,147.72,147.66,10.87859061]
[1750293434470,10.87859061,147.72,147.57,16.3459]
[1750293434471,10.87859061,147.68,147.63,10.87859061]
[1750293434670,10.87859061,147.71,147.66,10.87859061]
[1750293434885,10.87859061,147.72,147.66,10.87859061]
[1750293435282,10.87859061,147.71,147.66,10.87859061]
[1750293435495,10.87859061,147.71,147.65,10.87859061]
[1750293436003,26.0,147.73,147.66,17.65090538]
[1750293436189,10.87859061,147.72,147.67,10.87859061]
[1750293436394,26.0,147.73,147.67,10.87859061]
[1750293436395,36.87859061,147.73,147.67,10.87859061]
[1750293436696,10.87859061,147.74,147.69,10.87859061]
[1750293437777,0.12843226,147.7,147.69,17.64916987]
[1750293438683,0.12843226,147.7,147.69,28.52776048]
[1750293438997,0.12843226,147.7,147.69,17.64916987]
[1750293441599,0.12843226,147.7,147.69,28.52776048]
[1750293442080,0.12843226,147.7,147.69,17.64916987]
[1750293442290,0.12843226,147.7,147.69,36.29881873]
[1750293442478,0.12843226,147.7,147.69,47.17740934]
[1750293442672,0.12843226,147.7,147.69,36.29881873]
[1750293442995,0.12843226,147.7,147.69,47.17740934]
[1750293446369,0.12971093,147.71,147.69,47.17740934]
[1750293446569,0.12971093,147.71,147.7,10.87859061]
[1750293447701,0.12971093,147.71,147.7,46.92907131]
[1750293449606,0.12971093,147.71,147.7,6.7704807]
[1750293449779,0.12971093,147.71,147.7,17.64907131]
[1750293451005,0.12971093,147.71,147.7,6.7704807]
[1750293451597,0.12971093,147.71,147.7,17.64907131]
[1750293454184,0.12971093,147.71,147.7,6.7704807]
[1750293454403,0.12971093,147.71,147.7,17.64907131]
[1750293455207,0.12971093,147.71,147.7,6.7704807]
[1750293455376,0.12971093,147.71,147.7,17.64907131]
[1750293457104,10.87859061,147.75,147.7,34.57527307]
[1750293457290,147.0,147.74,147.71,10.87859061]
[1750293457810,0.14782985,147.72,147.71,10.87859061]
[1750293458877,0.14782985,147.72,147.71,17.64861295]
[1750293459297,0.14782985,147.72,147.71,6.77002234]
[1750293460009,12.54902046,147.72,147.67,27.80711797]
[1750293460312,12.54902046,147.72,147.68,6.77139761]
[1750293461184,1.67042985,147.72,147.68,17.64998822]
[1750293461385,1.67042985,147.72,147.69,10.87859061]
[1750293462495,1.67042985,147.72,147.68,23.69989165]
[1750293462696,1.67042985,147.72,147.69,10.87859061]
[1750293463205,1.67042985,147.72,147.7,6.7704807]
[1750293466902,1.67042985,147.72,147.69,6.35904676]
[1750293467605,1.67042985,147.72,147.66,23.70310171]
[1750293467800,6.35904676,147.71,147.67,6.35904676]
[1750293468120,8.02947661,147.72,147.68,6.35904676]
[1750293468921,8.02947661,147.72,147.68,13.13007796]
[1750293470322,6.35904676,147.71,147.68,6.7710312]
[1750293470902,6.35904676,147.71,147.62,26.0]
[1750293471100,6.35904676,147.7,147.65,6.35904676]
[1750293471301,6.35904676,147.7,147.66,6.35904676]
[1750293471621,6.35904676,147.7,147.64,16.93308046]
[1750293471801,6.35904676,147.7,147.66,6.35904676]
[1750293472206,6.35904676,147.7,147.67,6.77185616]
[1750293473308,147.0,147.71,147.67,6.77185616]
[1750293473492,6.35904676,147.7,147.67,6.77185616]
[1750293476503,153.35904676,147.71,147.67,6.77185616]
[1750293476900,153.35904676,147.7,147.67,6.77185616]
[1750293477099,6.35904676,147.69,147.66,6.77215296]
[1750293477305,6.35904676,147.68,147.65,6.77262012]
[1750293477824,0.12213997,147.66,147.65,6.77262012]